Cogmind - Beta 11 *** ADVENTURER MODE // 2022.04.13 @ 00:52:43 Player: Honkmo Jones Result: Self-destructed Performance ------------- Evolutions (1) 500 Regions Visited (3) 600 Robots Destroyed (16) 80 Value Destroyed (316) 316 Prototype IDs (0) 0 Alien Tech Used (0) 0 Bonus (0) 0 TOTAL SCORE: 1496 Bonus ------- None Cogmind --------- Core Integrity 381/400 Matter 282/300 Energy 250/250 System Corruption 0% Temperature Cool (0) Movement Rolling (80) Location -9/Materials Parts ------- > --- POWER (1) -------- Ion Engine > --- PROPULSION (3) --- Wheel Wheel > --- UTILITY (3) ------ Medium Storage Unit Sensor Array Signal Interpreter > --- WEAPON (2) ------- Light Assault Rifle Heavy Assault Rifle > --- INVENTORY (10) --- Light Ion Engine Field Recycling Unit (0) EM Pulse Gun Particle Cannon Assault Rifle Shotgun Peak State ------------ > --- POWER ------------ Ion Engine > --- PROPULSION ------- Wheel Compact Wheel Compact Wheel > --- UTILITY ---------- Medium Storage Unit Sensor Array Signal Interpreter > --- WEAPON ----------- EM Pulse Gun Heavy Assault Rifle > --- INVENTORY -------- Light Ion Engine Wheel Field Recycling Unit Particle Cannon Assault Rifle Light Assault Rifle Shotgun [Rating: 11] Favorites ----------- Power Ion Engine Engine Ion Engine Propulsion Compact Wheel Wheel Compact Wheel Utility Sensor Array Device Sensor Array Storage Small Storage Unit Processor Signal Interpreter Weapon EM Pulse Gun Energy Gun EM Pulse Gun Ballistic Gun Heavy Assault Rifle Launcher Grenade Launcher Build | -11 -10 -10 -9 ------- Run | Scr Mat Min Mat Slots Evolved 2 | . . . 2 Power . | . . . . Propulsion 1 | . . . 1 Utility 1 | . . . 1 Weapon . | . . . . Parts Attached 15 | 6 4 . 5 Power 1 | 1 . . . Engine 1 | 1 . . . Core . | . . . . Reactor . | . . . . Propulsion 4 | 2 . . 2 Treads . | . . . . Leg . | . . . . Wheel 4 | 2 . . 2 Hover . | . . . . Flight . | . . . . Utility 4 | 1 2 . 1 Device 1 | . 1 . . Storage 2 | 1 1 . . Processor 1 | . . . 1 Hackware . | . . . . Protection . | . . . . Artifact . | . . . . Weapon 6 | 2 2 . 2 Energy Gun 2 | 1 1 . . Energy Cannon . | . . . . Ballistic Gun 3 | 1 . . 2 Ballistic Cannon . | . . . . Launcher 1 | . 1 . . Special Weapon . | . . . . Impact Weapon . | . . . . Slashing Weapon . | . . . . Piercing Weapon . | . . . . Special Melee Weapon . | . . . . Unidentified Prototypes . | . . . . Parts Lost 2 | . . . 2 Power . | . . . . Propulsion 2 | . . . 2 Utility . | . . . . Weapon . | . . . . Highest Loss Streak 2 | . . . 2 To Critical Strikes . | . . . . Average Slot Usage (%) 97 | . 95 100 98 Engine 12 | . 14 14 11 Wheel 29 | . 28 28 31 Device 10 | . 9 14 11 Storage 12 | . 14 14 11 Processor 3 | . . . 11 Energy Gun 12 | . 14 14 10 Ballistic Gun 1 | . . . 5 Launcher 11 | . 13 14 6 Naked Turns . | . . . . Heaviest Build 21 | 13 21 21 21 Greatest Support 42 | 32 32 32 42 Greatest Overweight (x) 1 | . . . 1 Average Overweight (x) . | . . . . Largest Inventory Capacity 10 | 8 10 10 10 Average Capacity 8 | 7 8 10 10 Most Carried 8 | 6 8 7 7 Average Carried 6 | 4 7 7 5 Final Capacity 10 | 8 10 10 10 Final Carried 7 | 6 7 7 6 Class Distribution -------------------- 96% | Mutant 3% | Scavenger-Mutant Dominant Class ---------------- Mutant | -10/Materials Mutant | -10/Mines Mutant | -9/Materials Resources | -11 -10 -10 -9 ----------- Run | Scr Mat Min Mat Matter Collected 503 | 268 127 . 108 Remotely . | . . . . Salvage Created 330 | 85 160 . 85 Parts 26 | 6 13 1 6 Haulers Intercepted . | . . . . Recyclers Shooed 2 | 1 1 . . Parts Field Recycled . | . . . . Retrieved Matter . | . . . . Parts Self-Destructed . | . . . . Prevented . | . . . . Kills | -11 -10 -10 -9 ------- Run | Scr Mat Min Mat Combat Hostiles Destroyed 12 | . 6 2 4 Guns 4 | . 1 . 3 AOE 8 | . 5 2 1 Classes Destroyed 6 | 2 3 . 1 Tunneler 2 | 2 . . . Recycler 1 | 1 . . . Watcher 1 | . 1 . . Swarmer 8 | . 3 2 3 Grunt 3 | . 3 . . Sentry 1 | . . . 1 Best Kill Streak 4 | 2 4 2 3 Combat Bots Only 4 | . 4 2 3 Max Kills in Single Turn 2 | 1 2 2 1 Gunslinging . | . . . . Exploded 2 | . 2 2 1 Melee . | . . . . Uniques/NPCs Destroyed . | . . . . Combat | -11 -10 -10 -9 -------- Run | Scr Mat Min Mat Damage Taken 376 | . 123 . 253 Core 63 | . 44 . 19 Absorbed by Shields . | . . . . Core Remaining (%) 91 | 100 . 82 . Volleys Fired 39 | 7 18 1 13 Largest 2 | 2 2 2 2 Hottest 70 | 60 70 70 70 Shots Fired 66 | 12 26 2 26 Gun 52 | 12 18 1 21 Cannon . | . . . . Launcher 14 | . 8 1 5 Special . | . . . . Kinetic 15 | 5 . . 10 Thermal 7 | 7 . . . Explosive 14 | . 8 1 5 Electromagnetic 30 | . 18 1 11 Robot Hit Streak 9 | 8 5 . 9 Robot Miss Streak 3 | 1 3 . 2 Penetration Max . | . . . . Secondary Targets 1 | . . . 1 Max Gunslinging Chain 1 | . . . 1 Shots Hit Robots 34 | 9 11 . 14 Core Hits 23 | 4 10 2 7 Critical Kills . | . . . . Critical Parts Destroyed . | . . . . Critical Strikes . | . . . . Melee Attacks . | . . . . Impact . | . . . . Slashing . | . . . . Piercing . | . . . . Sneak Attacks . | . . . . Combat Hostiles . | . . . . Follow-up Attacks . | . . . . Damage Inflicted 1001 | 114 506 68 313 Guns 426 | 114 141 . 171 Cannons . | . . . . Explosions 575 | . 365 68 142 Melee . | . . . . Ramming . | . . . . Kinetic 159 | 45 . . 114 Thermal 133 | 69 64 . . Explosive 468 | . 301 68 99 Electromagnetic 241 | . 141 . 100 Impact . | . . . . Slashing . | . . . . Piercing . | . . . . Highest Corruption 1 | . 1 1 . Average Corruption 1 | . 1 1 . Corruption Purged . | . . . . Corruption Blocked . | . . . . Effects 1 | . 1 . . Energy Discharges 1 | . 1 . . Overload Shots . | . . . . Overflow Damage . | . . . . Projectiles . | . . . . Explosions . | . . . . Melee . | . . . . Knockbacks . | . . . . Impact . | . . . . Kinetic . | . . . . Secondary . | . . . . Self-Inflicted Damage 116 | . 41 . 75 Shots 6 | . 2 . 4 Rammed . | . . . . Targets Rammed . | . . . . Kicked . | . . . . Crushed . | . . . . Highest Temperature 60 | 20 60 9 16 Average Temperature 20 | 20 21 6 11 Received Heat Transfer 135 | . 57 . 78 Siege Activations . | . . . . Robots Corrupted . | . . . . Combat Hostiles . | . . . . Parts Fried 2 | . 1 1 . Impact Corruptions . | . . . . Robots Melted . | . . . . Combat Hostiles . | . . . . Parts Melted . | . . . . Heat Transferred 250 | 150 100 . . Parts Sabotaged . | . . . . Parts Stolen . | . . . . Parts Stripped . | . . . . Power Chain Reactions 1 | . 1 . . Missiles Intercepted . | . . . . Alert | -11 -10 -10 -9 ------- Run | Scr Mat Min Mat Peak Influence 231 | 15 191 117 231 Initial 55 | . 8 55 38 Average 85 | 5 98 95 87 Maximum Alert Level 1 | . . . 1 Low Security (%) 96 | 100 100 100 87 Level 1 3 | . . . 12 Level 2 . | . . . . Level 3 . | . . . . Level 4 . | . . . . Level 5 . | . . . . High Security . | . . . . Max Security . | . . . . Squads Dispatched 4 | . 1 . 3 Investigation 1 | . 1 . . Extermination . | . . . . Reinforcement 3 | . . . 3 Assault . | . . . . Garrison . | . . . . Intercept . | . . . . Searches Triggered . | . . . . Construction Impeded 1 | . . . 1 Haulers Reinforced . | . . . . Active Scanning Responses . | . . . . Cargo Convoy Interrupts . | . . . . Stealth | -11 -10 -10 -9 --------- Run | Scr Mat Min Mat Distress Signals 2 | . . . 2 Communications Jammed . | . . . . Distress Signals . | . . . . Times Spotted 21 | . 8 . 13 Peak Tracking Total 7 | . 2 . 7 Tactical Retreats . | . . . . Traps | -11 -10 -10 -9 ------- Run | Scr Mat Min Mat Traps Triggered . | . . . . Indirectly . | . . . . Trap Hack Attempts . | . . . . Triggered . | . . . . Disarmed . | . . . . Reprogrammed . | . . . . Reused . | . . . . Traps Extracted . | . . . . Installed . | . . . . Triggered 1 | . . 1 . Machines | -11 -10 -10 -9 ---------- Run | Scr Mat Min Mat Machines Disabled 4 | . 3 . 1 Max in Single Turn 1 | . 1 . 1 Machines Sabotaged . | . . . . Garrisons Compromised . | . . . . Overloaded Fab Kills . | . . . . Hacking | -11 -10 -10 -9 --------- Run | Scr Mat Min Mat Machines Accessed 3 | . 3 . . Terminals 3 | . 3 . . Fabricators . | . . . . Repair Stations . | . . . . Recycling Units . | . . . . Scanalyzers . | . . . . Garrison Access . | . . . . Total Hacks 9 | . 9 . . Successful 4 | . 4 . . Failed 5 | . 5 . . Catastrophic . | . . . . Database Lockouts . | . . . . Manual 9 | . 9 . . Terminals 9 | . 9 . . Fabricators . | . . . . Repair Stations . | . . . . Recycling Units . | . . . . Scanalyzers . | . . . . Garrison Access . | . . . . Terminal Hacks 2 | . 2 . . Part Schematic 1 | . 1 . . Robot Analysis 1 | . 1 . . Fabricator Hacks . | . . . . Repair Station Hacks . | . . . . Recycling Unit Hacks . | . . . . Scanalyzer . | . . . . Garrison Access Hacks . | . . . . Unauthorized Hacks 2 | . 2 . . Terminals 2 | . 2 . . Botnet 2 | . 2 . . Fabricators . | . . . . Repair Stations . | . . . . Recycling Units . | . . . . Scanalyzers . | . . . . Garrison Access . | . . . . Data Cores Recovered . | . . . . Used . | . . . . Hacking Detections 3 | . 3 . . Full Trace Events 1 | . 1 . . Feedback Events 1 | . 1 . . Corruption 1 | . 1 . . Feedback Blocked . | . . . . Robot Schematics Acquired . | . . . . Robots Built . | . . . . Authchips . | . . . . Time . | . . . . Total Robot Build Rating . | . . . . Part Schematics Acquired 1 | . 1 . . Parts Built . | . . . . Authchips . | . . . . Time . | . . . . Total Part Build Rating . | . . . . Parts Repaired . | . . . . Time . | . . . . Parts Recycled . | . . . . Recycled Matter . | . . . . Retrieved Matter . | . . . . Retrieved Components . | . . . . Parts Scanalyzed . | . . . . Part Schematics Acquired . | . . . . Parts Damaged . | . . . . Bothacking | -11 -10 -10 -9 ------------ Run | Scr Mat Min Mat Used RIF Installer . | . . . . Robots Hacked . | . . . . Non-combat . | . . . . Combat . | . . . . Robot Hacks Applied . | . . . . Relay Couplers Released . | . . . . Fabnet Peak Effective % . | . . . . Robots Rewired . | . . . . Allies Hacked . | . . . . Hacks Repelled . | . . . . Allies | -11 -10 -10 -9 -------- Run | Scr Mat Min Mat Total Allies . | . . . . Largest Group . | . . . . Highest-Rated Group . | . . . . Highest-Rated Ally . | . . . . Total Orders . | . . . . Ally Attacks . | . . . . Total Damage . | . . . . Kills . | . . . . Allies Corrupted . | . . . . Allies Melted . | . . . . Intel | -11 -10 -10 -9 ------- Run | Scr Mat Min Mat Robot Analysis Total 1 | . 1 . . Derelict Logs Recovered 1 | . . 1 . Drone Launches . | . . . . Drone Recoveries . | . . . . Exploration | -11 -10 -10 -9 ------------- Run | Scr Mat Min Mat Turns Passed 1384 | 138 664 143 439 Spaces Moved 992 | 104 556 140 192 Core 4 | 4 . . . Treads . | . . . . Legs . | . . . . Wheels 988 | 100 556 140 192 Hover . | . . . . Flight . | . . . . Fastest Speed 50 | 50 100 100 80 Average Speed 98 | 98 100 100 91 Slowest Speed 100 | 100 100 100 95 Overloaded Moves . | . . . . Propulsion Burnouts . | . . . . Robots Hopped . | . . . . Cave-ins Triggered . | . . . . Exploration Rate (%) 29 | 6 63 34 14 Regions Visited 3 Branch Regions 1 Pre-discovered Areas . | . . . . Known Exits Taken . | . . . . Unknown Exits Taken 3 | 1 1 1 . Scrap Searched . | . . . . Spaces Dug . | . . . . Terrain Destroyed 70 | . 46 6 18 Melee . | . . . . Projectile . | . . . . AOE 70 | . 46 6 18 Terrain Rammed . | . . . . Walls Destroyed . | . . . . Machines Disabled . | . . . . Actions | -11 -10 -10 -9 --------- Run | Scr Mat Min Mat Total 1337 | 128 639 141 429 Wait 263 | . 47 1 215 Move 989 | 103 555 139 192 Hop . | . . . . Pick Up 23 | 12 8 . 3 Fast Attach 1 | . 1 . . Attach 9 | 6 . . 3 Detach . | . . . . Swap 5 | . 3 . 2 Drop 8 | . 7 . 1 Fire 39 | 7 18 1 13 Melee . | . . . . Ram . | . . . . Kick . | . . . . Crush . | . . . . Escape Stasis . | . . . . Rewire . | . . . . Trap . | . . . . Miscellaneous . | . . . . Route ------- -11/Scrapyard -10/Materials (discovered 2 exits: [*Mat] / [*Min]) -10/Mines -9/Materials History --------- Turn | Location | Event 9 | -11/Scrapyard | Discovered new exit (range 15) 139 | -11/Scrapyard | Entered Materials 309 | -10/Materials | Build established: Mutant 480 | -10/Materials | Discovered new exit (range 7) 617 | -10/Materials | Discovered new exit (range 16) 803 | -10/Materials | Entered Mines 863 | -10/Mines | Discovered new exit (range 10) 946 | -10/Mines | Entered Materials 946 | -9/Materials | Evolved 2 slots: Propulsion x1, Utility x1 1385 | -9/Materials | Self-destructed Last Messages --------------- 01327_ K-01 Serf collects debris. 01329_ Acquired Wheel. 01330_ Acquired 16 matter. 01330_ K-01 Serf collects debris. 01332_ Acquired 24 matter. 01339_ K-01 Serf cleans the Neutrino Reactor. 01343_ K-01 Serf collects debris. 01347_ K-01 Serf cleans the Neutrino Reactor. 01349_ Com. Wheel destroyed. 01350_ K-01 Serf collects debris. 01351_ K-01 Serf cleans the Neutrino Reactor. 01356_ K-01 Serf collects debris. 01357_ T-07 Excavator is excavating. 01357_ Com. Wheel destroyed. 01360_ T-07 Excavator is excavating. 01368_ U-05 Engineer lays Concrete. 01374_ O-16 Technician: "IFF HANDSHAKE FAILED. SECURING TERMINAL." 01376_ O-16 Technician uses terminal to summon reinforcements. 01376_ ALERT: Hostiles spotted, dispatching reinforcements to Terminal M002. 01376_ O-16 Technician locks terminal. Map ----- +----------------------------------------------------+ | ?????????????????????????????????????????????????? | | ?????????????????????????????????????????????????? | | ?????????????????????????????????????????????????? | | ?????????????????????????????????????????????????? | | ?????????????????????????????????????????????????? | | ?????????????????????????????????????????????????? | | ?????????????????????????????????????????????????? | | ?????????????????????????????????????????????????? | | ?????????????????????????????????????????????????? | | ?????????????????????????????????????????????????? | | ?????????????????????????????????????????????????? | | ?????????????????????????????????????????????????? | | ?????????????????????????????????????????????????? | | ?????????????????????????????????????????????????? | | ?????????????????????????????????????????????????? | | ?????????????????????????????????????????????????? | | ?????????????????????????????????????????????????? | | ?????????????????????????????????????????????????? | | ?????????????????????????????????????????????????? | | ???????????????????????????????x?????????????????? | | ?????????????????????????????????????????????????? | | ?????????????????????????????????????????????????? | | ?????????????????????????????????????????????????? | | ????????????????????##########???????????????????? | | ????????????????????# #???????????????????? | | ????????????????????# @ #???????????????????? | | ????????????????????# """#???????????????????? | | ????????????????????# """#???????????????????? | | ????????????????????# """#???????????????????? | | ????????????????????# """#???????????????????? | | ????????????????????# """#???????????????????? | | ????????????????????# #???????????????????? | | ????????????????????# #???????????????????? | | ##########################+### #???????????????? | | #???????????????? | | +???????????????? | | "T" #???????????????? | | " #/########### ####### #???????????????? | | " # ?????????# #????# #???????????????? | | " # ?????????#####????# #???????????????? | | # ??????????????????# #???????????????? | | # ??????????????????# """ ??????????????? | | " # ??????????????????# """ ?????????????? | | " #???????????????????# """ ?????????????? | | " #???????????????????# ??? ?????????????? | | #???????????????????# ???? ?????????????? | | #???????????????????? %???? ??????????????? | | #???????????????????? ?????????????????????? | | #???????????????????? [????????????????????? | | #???????????????????? ?????????????????????? | +----------------------------------------------------+ Best States ------------- Heat Dissipation 28 Energy Generation 10 Energy Capacity 250 Matter Stores 300 Matter Capacity 300 Sight Range 16 Robot Scan Range 14 Terrain Scan Density 10 Resistance: KI 20 Resistance: TH 20 Resistance: EX 20 Resistance: EM 20 Resistance: I 20 Resistance: S 20 Resistance: P 20 Evasion (%) 44 Offensive Hacking 10 Item Schematics ----------------- Com. Wheel | -10/Materials | Hacked Robot Schematics ------------------ None Fabricated ------------ Nothing Alien Tech Used ----------------- None Achievements -------------- None Challenges ------------ None Game ------ Seed PropulsionRegenerativeDriver Manual? 0 Play Time 00:14:28 Cumulative 20.9 hours Start 2022.04.13 @ 00:37:30 End 2022.04.13 @ 00:52:43 Sessions 1 Manual Loads 0 Difficulty Adventurer Special Mode None Game No. 45 Rogue 35 Adventurer 10 Explorer 0 Win Type - Total 0 Types 0/0/0/0/0/0/0/0/0 Lore% 15 Gallery% 23 Achievement% 20 Wizard Run 0 Options --------- ASCII 0 Keyboard 0 Movement Mouse Keybinds 0 Fullscreen 2 Font 14/Dina Map View 84x54 Tactical HUD 1 Map Filters NONE Filters NONE Steam 1 RUN: 00f5b78f-fadd-49e6-b330-bd683e5cfa47